bitfinex/quotes_BTCUSD_20240803
["timestamp","ask_amount","ask_price","bid_price","bid_amount"]
[1722652207401,0.16933269,61341.0,61338.0,0.014]
[1722652207632,0.16933269,61340.0,61338.0,0.014]
[1722652207813,0.16933269,61339.0,61338.0,0.014]
[1722652208241,0.122271,61339.0,61338.0,0.014]
[1722652208414,0.122279,61335.0,61334.0,0.014]
[1722652208738,0.122279,61335.0,61323.0,0.1905]
[1722652208739,0.076,61335.0,61320.0,0.8818]
[1722652208852,0.12753697,61333.0,61320.0,0.8818]
[1722652209055,0.16933269,61332.0,61320.0,0.0833]
[1722652209257,0.16933269,61332.0,61319.0,0.07070749]
[1722652209258,0.16933269,61331.0,61323.0,0.1905]
[1722652209484,0.16933269,61330.0,61324.0,0.003261]
[1722652209714,0.16933269,61329.0,61323.0,0.1905]
[1722652209918,0.16933269,61328.0,61323.0,0.1905]
[1722652210222,0.17106403,61335.0,61323.0,0.1905]
[1722652210223,0.16933269,61327.0,61323.0,0.1905]
[1722652210364,0.16933269,61326.0,61323.0,0.1905]
[1722652210565,0.16933269,61325.0,61322.0,0.1441]
[1722652210769,0.16933269,61324.0,61322.0,0.1441]
[1722652211047,0.16933269,61323.0,61322.0,0.0833]
[1722652211252,0.16933269,61323.0,61319.0,0.0633]
[1722652211459,0.0635,61326.0,61319.0,0.0633]
[1722652211588,0.16933269,61325.0,61319.0,0.0633]
[1722652211992,0.16933269,61325.0,61317.0,0.0825]
[1722652212197,0.0635,61326.0,61323.0,0.013]
[1722652212198,0.16933269,61324.0,61323.0,0.013]
[1722652212803,0.16933269,61324.0,61317.0,0.0825]
[1722652213046,0.16933269,61323.0,61322.0,0.014]
[1722652213253,0.16933269,61323.0,61320.0,0.0825]
[1722652213424,0.16933269,61322.0,61321.0,0.00326117]
[1722652213622,0.04878503,61331.0,61323.0,0.014]
[1722652213818,0.16937336,61330.0,61323.0,0.01726104]
[1722652214068,0.16937336,61329.0,61323.0,0.00326104]
[1722652214243,0.16937336,61328.0,61323.0,0.00326104]
[1722652214445,0.16937336,61327.0,61323.0,0.00326104]
[1722652214688,0.16937336,61326.0,61322.0,0.0032611]
[1722652214840,0.04879938,61331.0,61322.0,0.0032611]
[1722652215189,0.16937326,61330.0,61322.0,0.0032611]
[1722652215390,0.16937326,61329.0,61322.0,0.0032611]
[1722652215545,0.16937326,61328.0,61322.0,0.0032611]
[1722652215749,0.16937326,61327.0,61322.0,0.0032611]
[1722652215975,0.16937326,61326.0,61323.0,0.007]
[1722652216299,0.16937326,61325.0,61324.0,0.30652036]
[1722652216497,0.0635,61338.0,61326.0,0.0825]
[1722652216498,0.16934982,61330.0,61326.0,0.0825]
[1722652216766,0.04879938,61339.0,61329.0,0.1905]
[1722652216923,0.09842876,61342.0,61330.0,0.08576056]
[1722652216924,0.16934156,61338.0,61330.0,0.08576056]
[1722652217123,0.16934156,61337.0,61330.0,0.08576056]
[1722652217361,0.16934156,61336.0,61330.0,0.08576056]
[1722652217565,0.00788151,61335.0,61331.0,0.22075924]
[1722652217686,0.16934156,61334.0,61332.0,0.0825]
[1722652218147,0.17722307,61333.0,61332.0,0.0825]
[1722652219822,0.17722307,61333.0,61332.0,0.0965]
[1722652219957,0.17722307,61333.0,61332.0,0.1105]
[1722652220984,0.17722307,61333.0,61332.0,0.028]
[1722652221136,0.16934156,61333.0,61332.0,0.028]
[1722652221339,0.122267,61341.0,61332.0,0.028]
[1722652221340,0.16934156,61338.0,61332.0,0.028]
[1722652221540,0.13752907,61342.0,61332.0,0.028]
[1722652221541,0.16934156,61337.0,61332.0,0.028]
[1722652221741,0.16934156,61336.0,61332.0,0.028]
[1722652221929,0.04879938,61337.0,61332.0,0.028]
[1722652222131,0.16935051,61336.0,61332.0,0.014]
[1722652222338,0.16935051,61335.0,61332.0,0.014]
[1722652222533,0.16935051,61334.0,61332.0,0.024]
[1722652222756,0.16935051,61333.0,61332.0,0.014]
[1722652222959,0.16935051,61333.0,61331.0,0.1905]
[1722652223169,0.16935051,61332.0,61331.0,0.34795924]
[1722652223570,0.16934661,61338.0,61333.0,0.0633]
[1722652223790,0.16934569,61337.0,61333.0,0.0633]
[1722652223969,0.16934569,61336.0,61333.0,0.0633]
[1722652224168,0.16934569,61335.0,61333.0,0.0633]
[1722652224369,0.00083,61342.0,61333.0,0.0633]
[1722652224370,0.00083,61342.0,61336.0,0.01]
[1722652224546,0.16933558,61341.0,61339.0,0.1905]
[1722652224746,0.16933558,61341.0,61340.0,0.0825]
[1722652225207,0.16933558,61341.0,61340.0,0.30325924]
[1722652225438,0.00083,61342.0,61340.0,0.30325924]
[1722652225642,0.16931132,61341.0,61340.0,0.1458]
[1722652226399,0.16931132,61341.0,61340.0,0.1598]
[1722652226816,0.16931132,61341.0,61340.0,0.1458]
[1722652227198,0.16931132,61341.0,61340.0,0.1598]
[1722652227458,0.16931132,61341.0,61340.0,0.1458]
[1722652228363,0.16931132,61341.0,61340.0,0.1598]
[1722652229015,0.16931768,61341.0,61340.0,0.1598]
[1722652229603,0.16931768,61341.0,61340.0,0.1738]
[1722652229742,0.16931768,61341.0,61340.0,0.1458]
[1722652230265,0.16931768,61341.0,61340.0,0.028]
[1722652230466,0.16931768,61341.0,61340.0,0.014]
[1722652230884,0.16931768,61341.0,61340.0,0.028]
[1722652231336,0.16931768,61341.0,61333.0,0.0801]
[1722652231539,0.16931768,61341.0,61334.0,0.15745924]
[1722652231744,0.16931768,61341.0,61333.0,0.0801]
[1722652231947,0.16931768,61341.0,61340.0,0.014]
[1722652232153,0.34041345,61341.0,61340.0,0.014]
[1722652232295,0.12227,61340.0,61329.0,0.0801]
[1722652232497,0.21817037,61339.0,61329.0,0.23755924]
[1722652232674,0.16934203,61338.0,61334.0,0.014]
[1722652233322,0.16934203,61338.0,61333.0,0.1905]
[1722652233518,0.16934203,61338.0,61335.0,0.1551]
[1722652233720,0.16934203,61337.0,61336.0,0.24081959]
[1722652233923,0.16934203,61341.0,61336.0,0.42805924]
[1722652234123,0.00083,61342.0,61336.0,0.42805924]
[1722652234124,0.16934203,61340.0,61336.0,0.42805924]
[1722652234333,0.00083,61342.0,61337.0,0.0032603]
[1722652234334,0.16934203,61339.0,61337.0,0.0032603]
[1722652234533,0.16934203,61338.0,61337.0,0.16071954]
[1722652234685,0.16934203,61338.0,61337.0,0.15745924]
[1722652236447,0.16932678,61338.0,61337.0,0.17145924]
[1722652236653,0.16932678,61341.0,61337.0,0.17145924]
[1722652236903,0.00083,61342.0,61337.0,0.17145924]
[1722652236904,0.16932678,61340.0,61337.0,0.17145924]
[1722652237100,0.16932678,61339.0,61337.0,0.17145924]
[1722652237253,0.16932678,61338.0,61337.0,0.18545924]
[1722652237448,0.16932678,61338.0,61337.0,0.15745924]
[1722652237650,0.16932678,61341.0,61337.0,0.15745924]
[1722652237876,0.16932678,61341.0,61337.0,0.17145924]
[1722652238074,0.16932678,61341.0,61337.0,0.18545924]
[1722652238273,0.16932678,61341.0,61337.0,0.17145924]
[1722652238521,0.16932678,61341.0,61337.0,0.15745924]
[1722652238694,0.16932678,61341.0,61338.0,0.00326027]
[1722652238928,0.16932678,61341.0,61339.0,0.30255924]
[1722652239750,0.16895686,61341.0,61339.0,0.30255924]
[1722652239884,0.00083,61342.0,61340.0,0.0003699]
[1722652240488,0.00083,61342.0,61341.0,0.15745924]
[1722652240701,0.00083,61342.0,61341.0,0.23755924]
[1722652242285,0.00083,61342.0,61341.0,0.24755924]
[1722652242484,0.00083,61342.0,61341.0,0.31655924]
[1722652242773,0.00083,61342.0,61341.0,0.32855924]
[1722652242980,0.05800186,61361.0,61349.0,0.0801]
[1722652243188,0.47251164,61357.0,61354.0,0.1905]
[1722652243417,0.00919,61361.0,61354.0,0.1905]
[1722652243951,0.00919,61361.0,61355.0,0.1451]
[1722652244578,0.00919,61361.0,61360.0,0.1905]
[1722652244798,0.00919,61361.0,61360.0,0.50305924]
[1722652245022,0.00919,61361.0,61360.0,0.60505924]
[1722652245220,0.00919,61361.0,61360.0,0.62505924]
[1722652246003,0.00083,61369.0,61368.0,0.01]
[1722652246201,0.00083,61369.0,61368.0,0.50831757]
[1722652246622,0.00083,61369.0,61368.0,0.59305924]
[1722652247422,0.00083,61369.0,61368.0,0.61905924]
[1722652247567,0.00083,61369.0,61368.0,0.60505924]
[1722652247769,0.00083,61369.0,61368.0,0.59305924]
[1722652247989,0.00083,61369.0,61368.0,0.60705924]
[1722652248712,0.00083,61369.0,61368.0,0.61705924]
[1722652248958,0.00083,61369.0,61368.0,0.65305924]
[1722652249177,0.00083,61374.0,61373.0,0.1551]
[1722652249383,0.00083,61374.0,61373.0,0.41581719]
[1722652250171,0.00083,61374.0,61373.0,0.41781719]
[1722652251038,0.00083,61374.0,61373.0,0.43181719]
[1722652251458,0.00083,61374.0,61373.0,0.41655924]
[1722652251658,0.00083,61374.0,61373.0,0.1941]
[1722652251789,0.00083,61374.0,61373.0,0.0941]
[1722652252449,0.00083,61374.0,61373.0,0.1081]
[1722652252660,0.00083,61374.0,61373.0,0.2081]
[1722652256361,0.00083,61374.0,61373.0,0.028]
[1722652257225,0.14123,61374.0,61373.0,0.028]
[1722652257651,0.263431,61374.0,61373.0,0.028]
[1722652257949,0.507834,61374.0,61373.0,0.028]
[1722652258381,1.17709924,61374.0,61373.0,0.028]
[1722652258824,1.17709924,61374.0,61373.0,0.014]
[1722652259018,1.17709924,61374.0,61373.0,0.021]
[1722652259243,1.17709924,61374.0,61373.0,0.007]
[1722652259621,1.17709924,61374.0,61373.0,0.015]
[1722652259820,1.17709924,61374.0,61352.0,0.476]
[1722652259821,0.122238,61356.0,61353.0,0.00157439]
[1722652260024,0.182539,61355.0,61353.0,0.00157439]
[1722652260225,0.0603,61355.0,61345.0,0.00157439]
[1722652260461,0.0603,61355.0,61343.0,1.2745]
[1722652260462,0.0603,61355.0,61344.0,0.00157439]
[1722652260661,0.122243,61353.0,61344.0,0.00157439]
[1722652260885,0.0603,61355.0,61344.0,0.00157439]
[1722652260886,0.122245,61352.0,61344.0,0.00157439]
[1722652261183,0.244484,61354.0,61337.0,0.476]
[1722652261184,0.1404,61345.0,61337.0,0.476]
[1722652261391,0.1404,61345.0,61334.0,0.00157439]
[1722652261732,0.1404,61345.0,61333.0,0.1905]
[1722652262359,0.122266,61342.0,61333.0,0.1905]
[1722652262563,0.122263,61343.0,61333.0,0.1905]
[1722652262764,0.122264,61343.0,61333.0,0.1905]
[1722652262960,0.122262,61344.0,61334.0,0.00157439]
[1722652263168,0.122265,61342.0,61333.0,0.1905]
[1722652263372,0.122263,61343.0,61334.0,0.00157439]
[1722652263573,0.122273,61338.0,61337.0,0.007]
[1722652263746,0.366819,61338.0,61337.0,0.007]
[1722652263932,0.122287,61331.0,61330.0,0.476]
[1722652264139,0.122295,61327.0,61319.0,0.5523]
[1722652264337,0.122306,61322.0,61314.0,0.0663]
[1722652264762,0.24458,61330.0,61314.0,0.0663]
[1722652264959,0.19239282,61329.0,61315.0,0.07875194]
[1722652265203,0.15699282,61328.0,61315.0,0.07875194]
[1722652265605,0.122298,61326.0,61315.0,0.07875194]
[1722652265810,0.122298,61326.0,61315.0,0.17875194]
[1722652266194,0.023,61329.0,61316.0,0.00157439]
[1722652266394,0.023,61330.0,61316.0,0.00157439]
[1722652266620,0.122298,61326.0,61316.0,0.00157439]
[1722652266939,0.122297,61326.0,61316.0,0.00157439]
[1722652267150,0.123297,61326.0,61316.0,0.00157439]
[1722652267304,0.244587,61328.0,61316.0,0.00157439]
[1722652267513,0.122296,61327.0,61316.0,0.005]
[1722652267726,0.24459,61327.0,61316.0,0.005]
[1722652267950,0.122299,61325.0,61316.0,0.005]
[1722652268310,0.023,61330.0,61312.0,0.08630402]
[1722652268311,0.0603,61326.0,61312.0,0.08630402]
[1722652268551,0.12231,61320.0,61316.0,0.009]
[1722652268764,0.244598,61325.0,61316.0,0.009]
[1722652268963,0.244598,61325.0,61316.0,0.014]
[1722652269090,0.0613,61326.0,61316.0,0.009]
[1722652269298,0.18045924,61325.0,61316.0,0.009]
[1722652269517,0.122309,61320.0,61316.0,0.02]
[1722652269744,0.18145924,61325.0,61316.0,0.011]
[1722652269985,0.122311,61319.0,61316.0,0.021]
[1722652270345,0.122312,61319.0,61316.0,0.021]
[1722652270566,0.122315,61317.0,61316.0,0.011]
[1722652270792,0.122315,61317.0,61316.0,0.025]
[1722652271046,0.366945,61317.0,61316.0,0.025]
[1722652271302,0.366945,61317.0,61316.0,0.011]
[1722652271800,0.366945,61317.0,61316.0,0.025]
[1722652272046,0.366945,61317.0,61316.0,0.014]
[1722652272287,0.366945,61317.0,61316.0,0.028]
[1722652272508,0.366945,61317.0,61316.0,0.014]
[1722652272957,0.367945,61317.0,61316.0,0.014]
[1722652273204,0.123315,61317.0,61316.0,0.014]
[1722652273512,0.368945,61317.0,61316.0,0.028]
[1722652273678,0.124315,61317.0,61316.0,0.028]
[1722652273945,0.123315,61317.0,61316.0,0.014]
[1722652274210,0.367945,61317.0,61316.0,0.026]
[1722652274454,1.01566424,61317.0,61316.0,0.026]
[1722652274677,1.10186424,61317.0,61316.0,0.026]
[1722652275687,1.18166424,61317.0,61316.0,0.026]
[1722652275933,1.19166424,61317.0,61316.0,0.026]
[1722652276193,1.19066424,61317.0,61316.0,0.012]
[1722652276458,1.19066424,61317.0,61301.0,0.7985]
[1722652276459,0.674865,61308.0,61301.0,0.7985]
[1722652276684,0.674865,61308.0,61299.0,0.000913]
[1722652276685,0.32345924,61308.0,61299.0,0.000913]
[1722652276853,0.122348,61301.0,61299.0,0.000913]
[1722652277057,0.244682,61304.0,61299.0,0.000913]
[1722652277458,0.32345924,61308.0,61299.0,0.000913]
[1722652277459,0.122348,61301.0,61299.0,0.000913]
[1722652277825,0.122343,61303.0,61299.0,0.000913]
[1722652278047,0.122346,61302.0,61299.0,0.000913]
[1722652278327,0.244687,61303.0,61299.0,0.000913]
[1722652278531,0.122346,61302.0,61299.0,0.000913]
[1722652279158,0.123346,61302.0,61299.0,0.007913]
[1722652279568,0.001,61302.0,61299.0,0.007913]
[1722652279807,0.001,61302.0,61299.0,0.010913]
[1722652279985,0.123345,61302.0,61299.0,0.010913]
[1722652280185,0.123345,61302.0,61299.0,0.007913]
[1722652280186,0.122347,61301.0,61299.0,0.007913]
[1722652280610,0.122347,61301.0,61299.0,0.012913]
[1722652281028,0.122347,61301.0,61299.0,0.007913]
[1722652281169,0.001,61302.0,61299.0,0.007913]
[1722652281370,0.122349,61300.0,61299.0,0.007913]
[1722652281624,0.122349,61300.0,61299.0,0.006913]
[1722652282126,0.367047,61300.0,61299.0,0.014913]
[1722652282337,0.367047,61300.0,61299.0,0.006913]
[1722652282545,0.368047,61300.0,61299.0,0.015913]
[1722652282935,0.368047,61300.0,61299.0,0.009913]
[1722652283229,0.612745,61300.0,61299.0,0.014913]
[1722652283429,0.368047,61300.0,61299.0,0.014913]
[1722652283777,0.368047,61300.0,61299.0,0.009913]
[1722652283979,0.368047,61300.0,61299.0,0.016913]
[1722652283980,0.369047,61300.0,61299.0,0.016913]
[1722652284777,0.124349,61300.0,61299.0,0.016913]
[1722652286565,0.53850681,61300.0,61299.0,0.016913]
[1722652286845,0.29380881,61300.0,61299.0,0.016913]
[1722652287274,0.29380971,61300.0,61299.0,0.016913]
[1722652287477,0.53850771,61300.0,61299.0,0.016913]
[1722652288652,0.53850856,61300.0,61299.0,0.016913]
[1722652290321,0.78320656,61300.0,61299.0,0.016913]
[1722652290661,1.2740638,61300.0,61299.0,0.016913]
[1722652290863,1.10727439,61300.0,61299.0,0.016913]
[1722652291073,0.96367439,61300.0,61299.0,0.016913]
[1722652291566,0.42567649,61300.0,61299.0,0.016913]
[1722652291775,0.29381915,61300.0,61299.0,0.016913]
[1722652291980,0.17147015,61300.0,61299.0,0.01848739]
[1722652292181,0.17147015,61300.0,61299.0,0.016913]
[1722652292793,0.17047015,61300.0,61299.0,0.009913]
[1722652292941,0.16947015,61300.0,61299.0,0.000913]
[1722652293137,0.001,61300.0,61299.0,0.018913]
[1722652293339,0.17147015,61300.0,61299.0,0.018913]
[1722652293562,0.17147015,61300.0,61299.0,0.000913]
[1722652293563,0.17047015,61300.0,61299.0,0.000913]
[1722652293926,0.17247015,61300.0,61299.0,0.027913]
[1722652294329,0.17245413,61300.0,61299.0,0.027913]
[1722652294590,0.17145413,61300.0,61299.0,0.014913]
[1722652294946,0.16945413,61300.0,61299.0,0.000913]
[1722652295354,0.16945413,61300.0,61299.0,0.010913]
[1722652296117,0.16945215,61300.0,61299.0,0.010913]
[1722652296398,0.16945215,61300.0,61299.0,0.019913]
[1722652297150,0.16945215,61300.0,61299.0,0.010913]
[1722652297588,0.16945215,61300.0,61299.0,0.019913]
[1722652299058,0.16945215,61300.0,61299.0,0.009913]
[1722652299059,1.10525774,61300.0,61299.0,0.009913]
[1722652299265,1.41709356,61300.0,61299.0,0.020913]
[1722652299471,1.35943799,61300.0,61299.0,0.020913]
[1722652299674,1.35943799,61300.0,61299.0,0.011913]
[1722652299880,0.44663375,61300.0,61299.0,0.011913]
[1722652300080,0.42363375,61300.0,61299.0,0.020913]
[1722652300207,0.54598275,61300.0,61299.0,0.020913]
[1722652300911,0.54601466,61300.0,61299.0,0.020913]
[1722652301497,0.42366566,61300.0,61299.0,0.020913]
[1722652302089,0.54601466,61300.0,61299.0,0.020913]
[1722652302487,0.42366566,61300.0,61299.0,0.020913]
[1722652302668,0.54601466,61300.0,61299.0,0.020913]
[1722652303094,0.42366566,61300.0,61299.0,0.020913]
[1722652303300,0.16946626,61300.0,61299.0,0.020913]
[1722652303637,0.42366566,61300.0,61299.0,0.020913]
[1722652303842,0.54601466,61300.0,61299.0,0.020913]
[1722652304097,0.42366566,61300.0,61299.0,0.020913]
[1722652304567,0.16946626,61300.0,61299.0,0.020913]
[1722652305264,0.122341,61304.0,61299.0,0.020913]
[1722652305534,0.44663243,61303.0,61299.0,0.020913]
[1722652305774,0.555035,61308.0,61299.0,0.009913]
[1722652305775,0.42363243,61302.0,61299.0,0.009913]
[1722652305999,0.42363243,61301.0,61300.0,0.00157439]
[1722652306467,0.16945297,61301.0,61300.0,0.00157439]
[1722652307374,0.16945297,61301.0,61300.0,0.01357439]
[1722652307609,0.16945297,61301.0,61300.0,0.012]
[1722652307808,0.16945297,61301.0,61300.0,0.014]
[1722652308244,0.15745924,61308.0,61300.0,0.027]
[1722652308467,0.4236143,61307.0,61300.0,0.3569]
[1722652308689,0.0657,61316.0,61300.0,0.3569]
[1722652308690,0.4236143,61306.0,61301.0,0.00157439]
[1722652309147,0.310334,61316.0,61301.0,0.00157439]
[1722652309148,0.4236143,61305.0,61301.0,0.00157439]
[1722652310606,0.4236143,61305.0,61300.0,0.005]
[1722652310607,0.5459543,61305.0,61300.0,0.005]
[1722652310857,0.0662,61306.0,61301.0,0.01]
[1722652311107,0.54596225,61304.0,61301.0,0.01]
[1722652311351,0.42362025,61303.0,61301.0,0.019]
[1722652311620,0.42362025,61302.0,61301.0,0.019]
[1722652311869,0.1694481,61302.0,61301.0,0.01]
[1722652312106,0.1694481,61302.0,61301.0,0.018]
[1722652312342,0.1694481,61302.0,61301.0,0.008]
[1722652312597,0.44925234,61302.0,61301.0,0.008]
[1722652312797,1.25512403,61302.0,61301.0,0.008]
[1722652313016,1.49981403,61302.0,61301.0,0.008]
[1722652313220,1.68671443,61302.0,61301.0,0.014]
[1722652313419,1.66623079,61302.0,61301.0,0.014]
[1722652313647,1.66623079,61302.0,61301.0,0.026]
[1722652313971,1.66623079,61302.0,61301.0,0.012]
[1722652314199,0.611745,61300.0,61299.0,0.000913]
[1722652314427,1.32298852,61300.0,61299.0,0.000913]
[1722652314653,1.56768652,61300.0,61299.0,0.000913]
[1722652314874,1.51885879,61300.0,61299.0,0.000913]
[1722652315350,1.59210038,61300.0,61299.0,0.000913]
[1722652315939,1.27416079,61300.0,61299.0,0.000913]
[1722652316414,1.61666648,61300.0,61299.0,0.008913]
[1722652316866,1.55840328,61300.0,61299.0,0.015913]
[1722652317093,1.64126513,61300.0,61299.0,0.015913]
[1722652317326,1.585208,61300.0,61299.0,0.015913]
[1722652317548,1.776408,61300.0,61299.0,0.015913]
[1722652317789,1.766408,61300.0,61299.0,0.015913]
[1722652318254,1.766408,61300.0,61299.0,0.008913]
[1722652318709,1.766408,61300.0,61299.0,0.004913]
[1722652319217,1.766408,61300.0,61299.0,0.010913]
[1722652319351,1.766408,61300.0,61299.0,0.004913]
[1722652319789,1.768408,61300.0,61299.0,0.005913]
[1722652319989,1.279012,61300.0,61299.0,0.001913]
[1722652320218,1.46732602,61300.0,61299.0,0.002913]
[1722652320458,1.52718491,61300.0,61299.0,0.002913]
[1722652320677,1.28048691,61300.0,61299.0,0.001913]
[1722652320881,1.09928691,61300.0,61299.0,0.001913]
[1722652321088,1.34698491,61300.0,61299.0,0.001913]
[1722652321496,1.10228691,61300.0,61299.0,0.001913]
[1722652321700,0.50958067,61300.0,61299.0,0.000913]
[1722652321929,0.50958067,61300.0,61299.0,0.143913]
[1722652321930,0.48658067,61300.0,61299.0,0.143913]
[1722652322128,0.17248871,61300.0,61299.0,0.143913]
[1722652322535,0.005,61300.0,61299.0,0.143913]
[1722652322718,0.003,61300.0,61299.0,0.30137224]
[1722652323127,0.003,61300.0,61299.0,0.144913]
[1722652323128,0.16943151,61300.0,61299.0,0.144913]
[1722652323369,0.42357921,61310.0,61299.0,0.144913]
[1722652323571,0.16943151,61309.0,61300.0,0.26925194]
[1722652323811,0.16943151,61308.0,61307.0,0.143]
[1722652324751,0.16943151,61308.0,61307.0,0.08]
[1722652325175,0.29176451,61308.0,61303.0,0.063]
[1722652325380,0.16943151,61307.0,61303.0,0.063]
[1722652325598,0.16943151,61306.0,61303.0,0.063]
[1722652325760,0.16943151,61305.0,61303.0,0.063]
[1722652325959,0.122333,61308.0,61303.0,0.063]
[1722652326265,0.16943489,61307.0,61303.0,0.063]
[1722652326615,0.07875194,61314.0,61303.0,0.063]
[1722652326616,0.16943487,61306.0,61304.0,0.00157439]
[1722652326767,0.16943487,61305.0,61304.0,0.00157439]
[1722652327189,0.16943487,61310.0,61303.0,0.077]
[1722652327394,0.19243487,61309.0,61303.0,0.077]
[1722652327648,0.122336,61307.0,61303.0,0.07]
[1722652328004,0.16943299,61306.0,61303.0,0.07]
[1722652328208,0.53644999,61305.0,61304.0,0.00157439]
[1722652328423,0.244685,61304.0,61299.0,0.000913]
[1722652328607,0.1719,61332.0,61305.0,0.143]
[1722652328822,0.48350095,61322.0,61319.0,0.1905]
[1722652329021,0.16942679,61321.0,61320.0,0.143]
[1722652329231,0.16942679,61321.0,61314.0,0.143]
[1722652329458,0.122315,61317.0,61315.0,0.00157439]
[1722652329660,0.16940064,61316.0,61314.0,0.143]
[1722652329809,0.16940064,61316.0,61307.0,0.2716]
[1722652330016,0.122323,61313.0,61307.0,0.2716]
[1722652330221,0.16940064,61312.0,61307.0,0.2716]
[1722652330421,0.16940064,61311.0,61307.0,0.2716]
[1722652330629,0.16940064,61310.0,61307.0,0.2716]
[1722652330788,0.16940064,61309.0,61307.0,0.2716]
[1722652330996,0.16940064,61308.0,61307.0,0.001]
[1722652331194,0.244654,61311.0,61307.0,0.001]
[1722652331463,0.44575094,61308.0,61307.0,0.001]
[1722652331606,1.04027682,61308.0,61307.0,0.001]
[1722652332018,1.66463346,61308.0,61307.0,0.001]
[1722652332221,1.87013346,61308.0,61307.0,0.001]
[1722652332421,0.611745,61300.0,61294.0,0.000913]
[1722652332620,1.27560879,61300.0,61294.0,0.000913]
[1722652332846,1.52030679,61300.0,61294.0,0.000913]
[1722652333632,0.78621279,61300.0,61294.0,0.000913]
[1722652333994,1.27519311,61300.0,61294.0,0.000913]
[1722652334396,1.27519269,61300.0,61294.0,0.000913]
[1722652334603,1.21588682,61300.0,61294.0,0.000913]
[1722652334974,1.27519355,61300.0,61299.0,0.004913]
[1722652335137,1.21588682,61300.0,61299.0,0.004913]
[1722652335342,1.21588682,61300.0,61299.0,0.000913]
[1722652335543,1.21788682,61300.0,61299.0,0.000913]
[1722652336393,1.27746165,61300.0,61299.0,0.000913]
[1722652336593,1.27646622,61300.0,61299.0,0.000913]
[1722652337075,1.27746622,61300.0,61299.0,0.000913]
[1722652338210,1.55216422,61300.0,61299.0,0.000913]
[1722652338396,2.02001739,61300.0,61299.0,0.000913]
[1722652338599,2.03816222,61300.0,61299.0,0.000913]
[1722652339345,0.2774,61294.0,61281.0,0.00157439]
[1722652339547,0.2774,61294.0,61273.0,0.00157439]
[1722652339548,0.367167,61280.0,61273.0,0.00157439]
[1722652339787,0.83928393,61280.0,61269.0,0.0811]
[1722652339943,1.08406193,61280.0,61269.0,0.0811]
[1722652340639,1.05959207,61280.0,61269.0,0.0811]
[1722652340847,0.96194088,61280.0,61269.0,0.0811]
[1722652341184,1.05959127,61280.0,61269.0,0.0811]
[1722652341503,0.54561644,61280.0,61271.0,0.1905]
[1722652341644,0.47238488,61280.0,61271.0,0.1905]
[1722652341864,0.52119149,61280.0,61271.0,0.1905]
[1722652342065,0.52119149,61280.0,61269.0,0.0811]
[1722652342066,1.03817244,61280.0,61269.0,0.0811]
[1722652342447,0.96394088,61280.0,61269.0,0.0811]
[1722652342653,1.03713028,61280.0,61269.0,0.0811]
[1722652342847,1.03713028,61280.0,61271.0,0.1905]
[1722652342848,0.79540424,61280.0,61271.0,0.1905]
[1722652343103,0.7201518,61280.0,61271.0,0.1905]
[1722652343309,0.76694419,61280.0,61271.0,0.1905]
[1722652343499,0.24531722,61280.0,61277.0,0.1905]
[1722652343701,0.31891676,61280.0,61277.0,0.1905]
[1722652344054,0.17252776,61280.0,61279.0,0.1617633]
[1722652344474,0.17552776,61280.0,61279.0,0.1617633]
[1722652344673,0.16952776,61280.0,61279.0,0.1617633]
[1722652345072,0.17152776,61280.0,61279.0,0.1667633]
[1722652345274,0.17152776,61280.0,61279.0,0.1617633]
[1722652345275,0.002,61280.0,61279.0,0.1617633]
[1722652345697,0.22186839,61306.0,61294.0,0.1477]
[1722652345698,0.47251164,61297.0,61294.0,0.1477]
[1722652345897,0.16946572,61296.0,61294.0,0.1477]
[1722652346317,0.15745924,61305.0,61294.0,0.1477]
[1722652346523,0.16945723,61304.0,61299.0,0.1905]
[1722652346726,0.04878946,61306.0,61299.0,0.1905]
[1722652346942,0.16945723,61305.0,61299.0,0.1905]
[1722652347148,0.16945723,61309.0,61299.0,0.1905]
[1722652347587,0.16945723,61304.0,61299.0,0.1905]
[1722652347787,0.16943981,61303.0,61299.0,0.1905]
[1722652347992,0.2062487,61311.0,61299.0,0.1905]
[1722652347993,0.16944069,61302.0,61299.0,0.1905]
[1722652348218,0.15745924,61311.0,61299.0,0.1905]
[1722652348386,0.16943868,61310.0,61299.0,0.1905]
[1722652348573,0.122331,61309.0,61299.0,0.1905]
[1722652348798,0.16943868,61308.0,61299.0,0.1905]
[1722652349156,0.16943868,61308.0,61299.0,0.1985]
[1722652349362,0.15745924,61307.0,61299.0,0.1985]
[1722652349592,0.19243868,61306.0,61299.0,0.1905]
[1722652349793,0.023,61306.0,61299.0,0.1905]
[1722652349995,0.16944059,61305.0,61299.0,0.1925]
[1722652350547,0.16944059,61305.0,61299.0,0.1945]
[1722652350924,0.29177959,61305.0,61299.0,0.1925]
[1722652351117,0.29178159,61304.0,61299.0,0.1905]
[1722652351294,0.16944059,61303.0,61299.0,0.1945]
[1722652351496,0.16944059,61302.0,61299.0,0.2005]
[1722652351722,0.16944059,61301.0,61299.0,0.2005]
[1722652351925,0.16944059,61300.0,61299.0,0.1945]
[1722652352168,0.16944059,61304.0,61299.0,0.1905]
[1722652352382,0.16944059,61304.0,61299.0,0.1955]
[1722652352495,0.16944059,61303.0,61299.0,0.1955]
[1722652352708,0.16944059,61302.0,61299.0,0.1905]
[1722652352921,0.16944059,61301.0,61299.0,0.1905]
[1722652353120,0.16944059,61300.0,61299.0,0.1905]
[1722652353324,0.16945268,61300.0,61299.0,0.1965]
[1722652353532,0.16945268,61302.0,61299.0,0.006]
[1722652353734,0.16945268,61301.0,61294.0,0.1477]
[1722652353939,0.16945268,61300.0,61294.0,0.1477]
[1722652354166,0.122341,61304.0,61299.0,0.009]
[1722652354364,0.16945354,61303.0,61299.0,0.009]
[1722652354829,0.16945354,61303.0,61299.0,0.015]
[1722652355033,0.16945354,61303.0,61299.0,0.006]
[1722652355254,0.16945354,61303.0,61294.0,0.1477]